fUSD/lending_fUSD_20240506
["ID","MTS","AMOUNT","RATE_DAILY","PERIOD"]
[326519036,1715038252478,-516.48,0.00024657,2]
[326519037,1715038252490,-500.0,0.00024657,2]
[326519038,1715038252503,-516.48,0.00024657,2]
[326519039,1715038252515,-500.0,0.00024657,2]
[326519040,1715038252528,-516.48,0.00024657,2]
[326519041,1715038252540,-504.92979775,0.00024657,2]
[326519042,1715038252553,-516.48,0.00024657,2]
[326519043,1715038252566,-780.94,0.00024657,2]
[326519044,1715038252579,-500.0,0.00024657,2]
[326519045,1715038252591,-516.48,0.00024657,2]
[326519046,1715038252604,-500.0,0.00024657,2]
[326519047,1715038252616,-516.48,0.00024657,2]
[326519048,1715038252628,-516.48,0.00024657,2]
[326519049,1715038252640,-931.55,0.00024657,2]
[326519050,1715038252652,-500.0,0.00024657,2]
[326519051,1715038252665,-516.48,0.00024657,2]
[326519052,1715038252680,-2869.07,0.00024657,2]
[326519053,1715038252694,-1460.77,0.00024657,2]
[326519054,1715038252707,-516.48,0.00024657,2]
[326519055,1715038252720,-516.48,0.00024657,2]
[326519056,1715038252733,-516.48,0.00024657,2]
[326519057,1715038252747,-516.48,0.00024657,2]
[326519058,1715038252759,-516.48,0.00024657,2]
[326519059,1715038252772,-516.48,0.00024657,2]
[326519060,1715038252785,-500.0,0.00024657,2]
[326519061,1715038252798,-500.84,0.00024657,2]
[326519062,1715038252811,-516.48,0.00024657,2]
[326519063,1715038252824,-516.48,0.00024657,2]
[326519064,1715038252836,-912.76,0.00024657,2]
[326519065,1715038252849,-4006.05,0.00024657,2]
[326519066,1715038252863,-516.48,0.00024657,2]
[326519067,1715038252875,-501.89757367,0.00024657,2]
[326519068,1715038252888,-516.48,0.00024657,2]
[326519069,1715038252900,-516.48,0.00024657,2]
[326519070,1715038252913,-894.15,0.00024657,2]
[326519071,1715038252926,-516.48,0.00024657,2]
[326519072,1715038252939,-500.0,0.00024657,2]
[326519073,1715038252953,-516.56,0.00024657,2]
[326519074,1715038252967,-500.0,0.00024657,2]
[326519075,1715038252980,-1060.05,0.00024657,2]
[326519076,1715038252993,-1359.25,0.00024657,2]
[326519077,1715038253007,-500.0,0.00024657,2]
[326519078,1715038253020,-2497.14,0.00024657,2]
[326519079,1715038253033,-1691.18,0.00024657,2]
[326519080,1715038253047,-2759.21,0.00024657,2]
[326519081,1715038253060,-500.0,0.00024657,2]
[326519082,1715038253072,-751.77,0.00024657,2]
[326519083,1715038253084,-3496.84,0.00024657,2]
[326519084,1715038253097,-500.0,0.00024657,2]
[326519085,1715038253109,-500.0,0.00024657,2]
[326519086,1715038253122,-500.0,0.00024657,2]
[326519087,1715038253134,-876.5,0.00024657,2]
[326519088,1715038253146,-1285.93,0.00024657,2]
[326519089,1715038253159,-500.0,0.00024657,2]
[326519090,1715038253173,-1093.71,0.00024657,2]
[326519091,1715038253187,-2806.14,0.00024657,2]
[326519092,1715038253200,-4251.75,0.00024657,2]
[326519093,1715038253212,-1321.98,0.00024657,2]
[326519094,1715038253225,-500.0,0.00024657,2]
[326519095,1715038253237,-11586.12,0.00024657,2]
[326519096,1715038253250,-500.0,0.00024657,2]
[326519097,1715038253262,-4860.94,0.00024657,2]
[326519098,1715038253274,-517.79303433,0.00024657,2]
[326519099,1715038253286,-2340.56,0.00024657,2]
[326519100,1715038253299,-505.04045667,0.00024657,2]
[326519101,1715038253312,-2779.61,0.00024657,2]
[326519102,1715038253324,-500.0,0.00024657,2]
[326519103,1715038253336,-7096.1,0.00024657,2]
[326519104,1715038253349,-7096.1,0.00024657,2]
[326519105,1715038253366,-179.28260079,0.00024657,2]
[326519106,1715038253379,-7096.1,0.00024657,2]
[326519107,1715038253392,-200.54885542,0.00024657,2]
[326519108,1715038253405,-7096.1,0.00024657,2]
[326519109,1715038253422,-7096.1,0.00024657,2]
[326519110,1715038253442,-2174.71,0.00024657,2]
[326519111,1715038253455,-7096.1,0.00024657,2]
[326519112,1715038253467,-2186.99,0.00024657,2]
[326519113,1715038253480,-7096.1,0.00024657,2]
[326519114,1715038253492,-7096.1,0.00024657,2]
[326519115,1715038253504,-500.0,0.00024657,2]
[326519116,1715038253516,-618.32,0.00024657,2]
[326519117,1715038253529,-574.59,0.00024657,2]
[326519118,1715038253543,-992.09,0.00024657,2]
[326519119,1715038253556,-1371.38,0.00024657,2]
[326519120,1715038253569,-2116.77,0.00024657,2]
[326519121,1715038253581,-500.0,0.00024657,2]
[326519122,1715038253594,-1216.1,0.00024657,2]
[326519123,1715038253607,-729.38,0.00024657,2]
[326519124,1715038253619,-2560.81,0.00024657,2]
[326519125,1715038253633,-4863.49,0.00024657,2]
[326519126,1715038253645,-500.0,0.00024657,2]
[326519127,1715038253657,-500.0,0.00024657,2]
[326519128,1715038253671,-3473.96,0.00024657,2]
[326519129,1715038253683,-500.0,0.00024657,2]
[326519130,1715038253695,-827.48,0.00024657,2]
[326519131,1715038253707,-840.82,0.00024657,2]
[326519132,1715038253717,-647.97,0.00024657,2]
[326519133,1715038253729,-7723.62,0.00024657,2]
[326519134,1715038253739,-644.12,0.00024657,2]
[326519135,1715038253750,-500.0,0.00024657,2]
[326519136,1715038253763,-1970.74,0.00024657,2]
[326519137,1715038253773,-673.21,0.00024657,2]
[326519138,1715038253783,-7920.78,0.00024657,2]
[326519139,1715038253793,-842.25,0.00024657,2]
[326519140,1715038253804,-500.0,0.00024657,2]
[326519141,1715038253814,-716.54,0.00024657,2]
[326519142,1715038253824,-500.0,0.00024657,2]
[326519143,1715038254253,-4829.43,0.00024657,2]
[326519144,1715038254286,-2515.28,0.00024657,2]
[326519145,1715038254306,-500.0,0.00024657,2]
[326519146,1715038254322,-704.86,0.00024657,2]
[326519147,1715038254333,-2074.27,0.00024657,2]
[326519148,1715038254343,-500.0,0.00024657,2]
[326519149,1715038254355,-3755.47,0.00024657,2]
[326519150,1715038254366,-787.01,0.00024657,2]
[326519151,1715038254378,-500.0,0.00024657,2]
[326519152,1715038254390,-500.0,0.00024657,2]
[326519153,1715038254400,-13648.4,0.00024657,2]
[326519154,1715038254410,-4757.92,0.00024657,2]
[326519155,1715038254420,-678.61,0.00024657,2]
[326519156,1715038254431,-500.0,0.00024657,2]
[326519157,1715038254441,-500.0,0.00024657,2]
[326519158,1715038254454,-500.0,0.00024657,2]
[326519159,1715038254464,-7182.49,0.00024657,2]
[326519160,1715038254474,-549.0200047,0.00024657,2]
[326519161,1715038254485,-500.0,0.00024657,2]
[326519162,1715038254495,-660.18,0.00024657,2]
[326519163,1715038254505,-877.54,0.00024657,2]
[326519164,1715038254515,-1178.55,0.00024657,2]
[326519165,1715038254525,-2795.19,0.00024657,2]
[326519166,1715038254535,-500.0,0.00024657,2]
[326519167,1715038254546,-500.0,0.00024657,2]
[326519168,1715038254556,-500.0,0.00024657,2]
[326519169,1715038254566,-1148.57,0.00024657,2]
[326519170,1715038254577,-500.0,0.00024657,2]
[326519171,1715038254587,-500.0,0.00024657,2]
[326519172,1715038254597,-500.0,0.00024657,2]
[326519173,1715038254607,-2306.17,0.00024657,2]
[326519174,1715038254619,-774.65,0.00024657,2]
[326519175,1715038254630,-500.0,0.00024657,2]
[326519176,1715038254640,-3093.37,0.00024657,2]
[326519177,1715038254650,-500.0,0.00024657,2]
[326519178,1715038254659,-222.65,0.00024657,2]
[326519179,1715038254670,-500.0,0.00024657,2]
[326519180,1715038254679,-518.01,0.00024657,2]
[326519181,1715038254689,-500.0,0.00024657,2]
[326519182,1715038254699,-2433.81,0.00024657,2]
[326519183,1715038254708,-14175.52,0.00024657,2]
[326519184,1715038254718,-500.0,0.00024657,2]
[326519185,1715038254727,-500.0,0.00024657,2]
[326519186,1715038254737,-500.0,0.00024657,2]
[326519187,1715038254746,-10336.34,0.00024657,2]
[326519188,1715038254755,-513.313704,0.00024657,2]
[326519189,1715038254765,-500.0,0.00024657,2]
[326519190,1715038254774,-3349.65,0.00024657,2]
[326519191,1715038254784,-1635.08,0.00024657,2]
[326519192,1715038254793,-500.0,0.00024657,2]
[326519193,1715038254803,-500.0,0.00024657,2]
[326519194,1715038254812,-500.0,0.00024657,2]
[326519195,1715038254821,-500.0,0.00024657,2]
[326519196,1715038254831,-500.0,0.00024657,2]
[326519197,1715038254840,-500.0,0.00024657,2]
[326519198,1715038254850,-3491.18,0.00024657,2]
[326519199,1715038254866,-1671.44,0.00024657,2]
[326519200,1715038254876,-531.09,0.00024657,2]
[326519201,1715038254886,-5095.35,0.00024657,2]
[326519202,1715038254896,-500.0,0.00024657,2]
[326519203,1715038254907,-500.0,0.00024657,2]
[326519204,1715038254917,-768.2,0.00024657,2]
[326519205,1715038254926,-500.0,0.00024657,2]
[326519206,1715038254941,-500.0,0.00024657,2]
[326519207,1715038254955,-500.0,0.00024657,2]
[326519208,1715038254966,-887.06,0.00024657,2]
[326519209,1715038254976,-500.0,0.00024657,2]
[326519210,1715038254987,-840.93,0.00024657,2]
[326519211,1715038254997,-945.69,0.00024657,2]
[326519212,1715038255009,-513.9,0.00024657,2]
[326519213,1715038255019,-500.0,0.00024657,2]
[326519214,1715038255029,-1241.79,0.00024657,2]
[326519215,1715038255040,-501.83841527,0.00024657,2]
[326519216,1715038255050,-5647.63,0.00024657,2]
[326519217,1715038255060,-2815.56,0.00024657,2]
[326519218,1715038255071,-500.0,0.00024657,2]
[326519219,1715038255081,-580.72,0.00024657,2]
[326519220,1715038255091,-1000.41,0.00024657,2]
[326519221,1715038255101,-500.0,0.00024657,2]
[326519222,1715038255111,-500.0,0.00024657,2]
[326519223,1715038255120,-500.0,0.00024657,2]
[326519224,1715038255130,-785.98,0.00024657,2]
[326519225,1715038255140,-1134.57,0.00024657,2]
[326519226,1715038255150,-953.92,0.00024657,2]
[326519227,1715038255159,-1803.23,0.00024657,2]
[326519228,1715038255171,-5566.38,0.00024657,2]
[326519229,1715038255180,-20241.56,0.00024657,2]
[326519230,1715038255189,-506.62970227,0.00024657,2]
[326519231,1715038255199,-777.47,0.00024657,2]
[326519232,1715038255209,-500.0,0.00024657,2]
[326519233,1715038255218,-8850.73,0.00024657,2]
[326519234,1715038255228,-500.0,0.00024657,2]
[326519235,1715038255237,-2143.05,0.00024657,2]
[326519236,1715038255247,-2671.24,0.00024657,2]
[326519237,1715038255257,-500.0,0.00024657,2]
[326519238,1715038255266,-1325.86,0.00024657,2]
[326519239,1715038255276,-6449.16,0.00024657,2]
[326519240,1715038255285,-1006.48,0.00024657,2]
[326519241,1715038255294,-743.7,0.00024657,2]
[326519242,1715038255304,-33957.45,0.00024657,2]
[326519243,1715038255313,-37667.67,0.00024657,2]
[326519244,1715038255326,-1895.42,0.00024657,2]
[326519245,1715038255336,-1128.56,0.00024657,2]
[326519246,1715038255345,-708.34,0.00024657,2]
[326519247,1715038255355,-583.26,0.00024657,2]
[326519248,1715038255368,-1808.62,0.00024657,2]
[326519249,1715038255378,-500.0,0.00024657,2]
[326519250,1715038255388,-500.0,0.00024657,2]
[326519251,1715038255398,-500.0,0.00024657,2]
[326519252,1715038255407,-500.0,0.00024657,2]
[326519253,1715038255418,-2912.56,0.00024657,2]
[326519254,1715038255428,-500.0,0.00024657,2]
[326519255,1715038255440,-500.0,0.00024657,2]
[326519256,1715038255450,-500.0,0.00024657,2]
[326519257,1715038255460,-500.0,0.00024657,2]
[326519258,1715038255470,-3440.68,0.00024657,2]
[326519259,1715038255481,-742.91,0.00024657,2]
[326519260,1715038255491,-1542.24,0.00024657,2]
[326519261,1715038255501,-505.04681924,0.00024657,2]
[326519262,1715038255510,-1027.37,0.00024657,2]
[326519263,1715038255521,-3042.79,0.00024657,2]
[326519264,1715038255531,-1004.33,0.00024657,2]
[326519265,1715038255541,-500.0,0.00024657,2]
[326519266,1715038255551,-1238.23,0.00024657,2]
[326519267,1715038255561,-621.0,0.00024657,2]
[326519268,1715038255570,-500.0,0.00024657,2]
[326519269,1715038255580,-500.0,0.00024657,2]
[326519270,1715038255590,-4463.26,0.00024657,2]
[326519271,1715038255600,-1350.1,0.00024657,2]
[326519272,1715038255610,-500.0,0.00024657,2]
[326519273,1715038255619,-500.0,0.00024657,2]
[326519274,1715038255629,-500.0,0.00024657,2]
[326519275,1715038255640,-714.45,0.00024657,2]
[326519276,1715038255650,-500.0,0.00024657,2]
[326519277,1715038255660,-1252.59,0.00024657,2]
[326519278,1715038255671,-836.47,0.00024657,2]
[326519279,1715038255681,-500.0,0.00024657,2]
[326519280,1715038255691,-2852.89,0.00024657,2]
[326519281,1715038255701,-668.94,0.00024657,2]
[326519282,1715038255711,-500.0,0.00024657,2]
[326519283,1715038255721,-2291.23,0.00024657,2]
[326519284,1715038255731,-1395.89,0.00024657,2]
[326519285,1715038255742,-5632.65,0.00024657,2]
[326519286,1715038255754,-500.0,0.00024657,2]
[326519287,1715038255764,-1006.14,0.00024657,2]
[326519288,1715038255774,-881.74,0.00024657,2]
[326519289,1715038255784,-500.0,0.00024657,2]
[326519290,1715038255794,-2815.76,0.00024657,2]
[326519291,1715038255803,-511.25,0.00024657,2]
[326519292,1715038255813,-1455.69,0.00024657,2]
[326519293,1715038255823,-1363.75,0.00024657,2]
[326519294,1715038255832,-1415.53,0.00024657,2]
[326519295,1715038255842,-500.0,0.00024657,2]
[326519296,1715038255852,-396.46,0.00024657,2]
[326519297,1715038255866,-500.0,0.00024657,2]
[326519298,1715038255875,-500.0,0.00024657,2]
[326519299,1715038255885,-3070.29,0.00024657,2]
[326519300,1715038255895,-3733.68,0.00024657,2]
[326519301,1715038255905,-957.87,0.00024657,2]
[326519302,1715038255915,-500.0,0.00024657,2]
[326519303,1715038255925,-555.32420958,0.00024657,2]
[326519304,1715038255936,-276.0967458,0.00024657,2]
[326519305,1715038255946,-2026.54,0.00024657,2]
[326519306,1715038255956,-5423.84,0.00024657,2]
[326519307,1715038255966,-500.0,0.00024657,2]
[326519308,1715038255975,-727.29,0.00024657,2]
[326519309,1715038255985,-500.0,0.00024657,2]
[326519310,1715038255994,-500.0,0.00024657,2]
[326519311,1715038256004,-734.7,0.00024657,2]
[326519312,1715038256015,-682.16,0.00024657,2]
[326519313,1715038256025,-771.52,0.00024658,2]
[326519314,1715038256036,-290.52,0.00024658,2]
[326519315,1715038256046,-150.0,0.0002469,2]
[326519316,1715038256057,-7096.1,0.00024691,2]
[326519317,1715038256068,-457.635668,0.00024697,2]
[326519318,1715038256078,-474.706587,0.00024697,2]
[326519319,1715038256087,-150.0,0.000247,4]
[326519320,1715038256133,-150.0,0.00024703,2]
[326519321,1715038256144,-200.0,0.00024732,2]
[326519322,1715038256159,-1000.0,0.00024732,2]
[326519323,1715038256170,-500.0,0.00024732,2]
[326519324,1715038256185,-150.0,0.00024743,2]
[326519325,1715038256196,-157.050708,0.00024748,4]
[326519326,1715038256206,-150.0,0.0002475,2]
[326519327,1715038256217,-150.0,0.00024812,2]
[326519328,1715038256229,-1000.0,0.00024867,2]
[326519329,1715038256239,-160.0,0.00024905,2]
[326519330,1715038256250,-160.0,0.00024914,2]
[326519331,1715038256260,-160.0,0.00024914,2]
[326519332,1715038256270,-184.44737748,0.00024921,2]
[326519333,1715038256280,-246462.63754697,0.00024929,2]
[326519334,1715038256290,-362.66162767,0.00024929,2]
[326519335,1715038256301,-1352.02412604,0.00024929,2]
[326519336,1715038256312,-473.46234265,0.00024929,2]
[326519337,1715038256322,-1264.85614198,0.00024929,2]
[326519338,1715038256332,-28922.08425257,0.00024929,2]
[326519339,1715038256343,-155.0,0.00024929,2]
[326519340,1715038256353,-189.8430996,0.00024929,2]
[326519341,1715038256363,-155.0,0.00024929,2]
[326519342,1715038256378,-5689.84975491,0.00024929,2]
[326519343,1715038256388,-5000.0,0.00024929,2]
[326519344,1715038256399,-155.0,0.0002493,2]
[326519345,1715038256409,-261.2636968,0.0002493,2]
[326519346,1715038256420,-7096.1,0.0002493,2]
[326519347,1715038256430,-7096.1,0.0002493,2]
[326519348,1715038256441,-7096.1,0.0002493,2]
[326519349,1715038256452,-7096.1,0.0002493,2]
[326519350,1715038256462,-500.0,0.00024931,3]
[326519351,1715038256473,-529.5,0.00024931,3]
[326519352,1715038256483,-500.0,0.00024931,3]
[326519353,1715038256493,-500.0,0.00024931,3]
[326519354,1715038256503,-500.0,0.00024931,3]
[326519355,1715038256513,-884.2,0.00024931,3]
[326519356,1715038256523,-838.77,0.00024931,3]
[326519357,1715038256534,-500.0,0.00024931,3]
[326519358,1715038256544,-500.0,0.00024931,3]
[326519359,1715038256555,-515.36,0.00024931,3]
[326519360,1715038256565,-500.0,0.00024931,3]
[326519361,1715038256575,-505.64,0.00024931,3]
[326519362,1715038256585,-512.18,0.00024931,3]
[326519363,1715038256595,-500.0,0.00024931,3]
[326519364,1715038256606,-500.0,0.00024931,3]
[326519365,1715038256616,-500.0,0.00024931,3]
[326519366,1715038256626,-681.6,0.00024931,3]
[326519367,1715038256636,-500.0,0.00024931,3]
[326519368,1715038256646,-500.0,0.00024931,3]
[326519369,1715038256657,-500.0,0.00024931,3]
[326519370,1715038256667,-622.96,0.00024931,3]
[326519371,1715038256678,-500.0,0.00024931,3]
[326519372,1715038256688,-500.0,0.00024931,3]
[326519373,1715038256699,-500.0,0.00024931,3]
[326519374,1715038256709,-436.43728038,0.00024931,3]
[326519375,1715038256720,-500.0,0.00024931,3]
[326519376,1715038256731,-500.0,0.00024931,3]
[326519377,1715038256741,-580.81,0.00024931,3]
[326519378,1715038256751,-500.0,0.00024931,3]
[326519379,1715038256761,-500.0,0.00024931,3]
[326519380,1715038256771,-500.0,0.00024931,3]
[326519381,1715038256782,-500.0,0.00024931,3]
[326519382,1715038256792,-500.0,0.00024931,3]
[326519383,1715038256804,-500.0,0.00024931,3]
[326519384,1715038256816,-500.0,0.00024931,3]
[326519385,1715038256827,-522.0,0.00024931,3]
[326519386,1715038256838,-806.98,0.00024931,3]
[326519387,1715038256848,-500.0,0.00024931,3]
[326519388,1715038256861,-500.0,0.00024931,3]
[326519389,1715038256871,-500.0,0.00024931,3]
[326519390,1715038256881,-500.0,0.00024931,3]
[326519391,1715038256891,-500.0,0.00024931,3]
[326519392,1715038256903,-690.77,0.00024931,3]
[326519393,1715038256912,-500.0,0.00024931,3]
[326519394,1715038256923,-1073.77,0.00024931,3]
[326519395,1715038256934,-566.43,0.00024931,3]
[326519396,1715038256945,-1311.61,0.00024931,3]
[326519397,1715038256957,-500.0,0.00024931,3]
[326519398,1715038256967,-1077.9,0.00024931,3]
[326519399,1715038256977,-519.38,0.00024931,3]
[326519400,1715038256987,-500.0,0.00024931,3]
[326519401,1715038256997,-730.22,0.00024931,3]
[326519402,1715038257006,-500.0,0.00024931,3]
[326519403,1715038257017,-956.04,0.00024931,3]
[326519404,1715038257028,-500.0,0.00024931,3]
[326519405,1715038257038,-536.14,0.00024931,3]
[326519406,1715038257048,-502.54,0.00024931,3]
[326519407,1715038257058,-539.45,0.00024931,3]
[326519408,1715038257068,-500.0,0.00024931,3]
[326519409,1715038257078,-651.42,0.00024931,3]
[326519410,1715038257087,-500.0,0.00024931,3]
[326519411,1715038257098,-500.0,0.00024931,3]
[326519412,1715038257108,-540.14,0.00024931,3]
[326519413,1715038257118,-500.0,0.00024931,3]
[326519414,1715038257128,-724.89,0.00024931,3]
[326519415,1715038257138,-500.0,0.00024931,3]
[326519416,1715038257149,-596.31,0.00024931,3]
[326519417,1715038257159,-500.0,0.00024931,3]
[326519418,1715038257169,-2499.34,0.00024931,3]
[326519419,1715038257179,-500.0,0.00024931,3]
[326519420,1715038257189,-500.0,0.00024931,3]
[326519421,1715038257199,-500.0,0.00024931,3]
[326519422,1715038257209,-702.5,0.00024931,3]
[326519423,1715038257220,-500.0,0.00024931,3]
[326519424,1715038257230,-1029.31,0.00024931,3]
[326519425,1715038257241,-500.0,0.00024931,3]
[326519426,1715038257252,-795.9,0.00024931,3]
[326519427,1715038257263,-500.0,0.00024931,3]
[326519428,1715038257273,-569.54,0.00024931,3]
[326519429,1715038257283,-500.0,0.00024931,3]
[326519430,1715038257294,-600.62,0.00024931,3]
[326519431,1715038257305,-500.0,0.00024931,3]
[326519432,1715038257315,-500.0,0.00024931,3]
[326519433,1715038257325,-647.41,0.00024931,3]
[326519434,1715038257338,-871.79,0.00024931,3]
[326519435,1715038257348,-500.0,0.00024931,3]
[326519436,1715038257358,-500.0,0.00024931,3]
[326519437,1715038257370,-500.0,0.00024931,3]
[326519438,1715038257381,-677.87,0.00024931,3]
[326519439,1715038257391,-500.0,0.00024931,3]
[326519440,1715038257401,-500.0,0.00024931,3]
[326519441,1715038257411,-500.0,0.00024931,3]
[326519442,1715038257421,-500.0,0.00024931,3]
[326519443,1715038257431,-500.0,0.00024931,3]
[326519444,1715038257441,-569.96,0.00024931,3]
[326519445,1715038257452,-500.0,0.00024931,3]
[326519446,1715038257462,-611.95,0.00024931,3]
[326519447,1715038257473,-500.0,0.00024931,3]
[326519448,1715038257483,-500.0,0.00024931,3]
[326519449,1715038257493,-500.0,0.00024931,3]
[326519450,1715038257504,-594.51,0.00024931,3]
[326519451,1715038257514,-500.0,0.00024931,3]
[326519452,1715038257525,-500.0,0.00024931,3]
[326519453,1715038257536,-500.0,0.00024931,3]
[326519454,1715038257549,-500.0,0.00024931,3]
[326519455,1715038257559,-809.18,0.00024931,3]
[326519456,1715038257570,-500.0,0.00024931,3]
[326519457,1715038257580,-500.0,0.00024931,3]
[326519458,1715038257590,-500.0,0.00024931,3]
[326519459,1715038257600,-650.11,0.00024931,3]
[326519460,1715038257610,-500.0,0.00024931,3]
[326519461,1715038257619,-500.0,0.00024931,3]
[326519462,1715038257629,-500.0,0.00024931,3]
[326519463,1715038257639,-500.0,0.00024931,3]
[326519464,1715038257649,-500.0,0.00024931,3]
[326519465,1715038257658,-520.64,0.00024931,3]
[326519466,1715038257668,-500.0,0.00024931,3]
[326519467,1715038257679,-500.0,0.00024931,3]
[326519468,1715038257864,-500.0,0.00024931,3]
[326519469,1715038257881,-688.38,0.00024931,3]
[326519470,1715038257891,-760.75,0.00024931,3]
[326519471,1715038257902,-1003.87,0.00024931,3]
[326519472,1715038257911,-500.0,0.00024931,3]
[326519473,1715038257921,-500.0,0.00024931,3]
[326519474,1715038257932,-500.0,0.00024931,3]
[326519475,1715038257942,-500.0,0.00024931,3]
[326519476,1715038257952,-500.0,0.00024931,3]
[326519477,1715038257963,-839.41,0.00024931,3]
[326519478,1715038257973,-500.0,0.00024931,3]
[326519479,1715038257983,-500.0,0.00024931,3]
[326519480,1715038257992,-500.0,0.00024931,3]
[326519481,1715038258003,-745.92,0.00024931,3]
[326519482,1715038258013,-1590.84,0.00024931,3]
[326519483,1715038258027,-500.0,0.00024931,3]
[326519484,1715038258036,-500.0,0.00024931,3]
[326519485,1715038258048,-990.58,0.00024931,3]
[326519486,1715038258060,-955.2,0.00024931,3]
[326519487,1715038258069,-500.0,0.00024931,3]
[326519488,1715038258079,-1693.94,0.00024931,3]
[326519489,1715038258089,-527.08,0.00024931,3]
[326519490,1715038258099,-500.0,0.00024931,3]
[326519491,1715038258109,-500.0,0.00024931,3]
[326519492,1715038258119,-500.0,0.00024931,3]
[326519493,1715038258129,-710.27,0.00024931,3]
[326519494,1715038258139,-500.0,0.00024931,3]
[326519495,1715038258149,-500.0,0.00024931,3]
[326519496,1715038258159,-500.0,0.00024931,3]
[326519497,1715038258169,-631.65,0.00024931,3]
[326519498,1715038258178,-500.0,0.00024931,3]
[326519499,1715038258188,-500.0,0.00024931,3]
[326519500,1715038258199,-500.0,0.00024931,3]
[326519501,1715038258208,-500.0,0.00024931,3]
[326519502,1715038258218,-500.0,0.00024931,3]
[326519503,1715038258228,-552.31,0.00024931,3]
[326519504,1715038258238,-574.49,0.00024931,3]
[326519505,1715038258248,-500.0,0.00024931,3]
[326519506,1715038258257,-500.0,0.00024931,3]
[326519507,1715038258269,-1015.1,0.00024931,3]
[326519508,1715038258279,-309.30427633,0.00024931,3]
[326519509,1715038258289,-500.0,0.00024931,3]
[326519510,1715038258299,-500.0,0.00024931,3]
[326519511,1715038258309,-1147.48,0.00024931,3]
[326519512,1715038258318,-885.64,0.00024931,3]
[326519513,1715038258328,-500.0,0.00024931,3]
[326519514,1715038258338,-2640.19,0.00024931,3]
[326519515,1715038258347,-500.0,0.00024931,3]
[326519516,1715038258358,-500.0,0.00024931,3]
[326519517,1715038258371,-1455.84,0.00024931,3]
[326519518,1715038258380,-668.99,0.00024931,3]
[326519519,1715038258390,-500.0,0.00024931,3]
[326519520,1715038258400,-824.69,0.00024931,3]
[326519521,1715038258410,-500.0,0.00024931,3]
[326519522,1715038258419,-500.0,0.00024931,3]
[326519523,1715038258430,-500.0,0.00024931,3]
[326519524,1715038258442,-500.0,0.00024931,2]
[326519525,1715038258453,-500.0,0.00024931,3]
[326519526,1715038258464,-500.0,0.00024931,3]
[326519527,1715038258474,-699.44,0.00024931,3]
[326519528,1715038258484,-500.0,0.00024931,2]
[326519529,1715038258494,-500.0,0.00024931,2]
[326519530,1715038258505,-500.0,0.00024931,2]
[326519531,1715038258515,-926.06,0.00024931,2]
[326519532,1715038258525,-1881.28,0.00024931,2]
[326519533,1715038258535,-518.80154697,0.00024931,2]
[326519534,1715038258546,-870.01,0.00024931,2]
[326519535,1715038258556,-864.48,0.00024931,2]